fUST/lending_fUST_20250707
["ID","MTS","AMOUNT","RATE_DAILY","PERIOD"]
[370081008,1751875856592,-397.92,0.00018445,2]
[370081009,1751875856602,-3508.38,0.00018445,2]
[370081010,1751875856612,-460.0,0.00018445,2]
[370081011,1751875856623,-470.48,0.00018445,2]
[370081012,1751875856632,-1141.42,0.00018445,2]
[370081013,1751875856641,-365.46710189,0.00018445,2]
[370081014,1751875856651,-517.7,0.00018445,2]
[370081015,1751875856661,-474.7,0.00018445,2]
[370081016,1751875856671,-466.4,0.00018445,2]
[370081017,1751875856681,-460.0,0.00018445,2]
[370081018,1751875856690,-460.0,0.00018445,2]
[370081019,1751875856699,-1282.13,0.00018445,2]
[370081020,1751875856709,-460.0,0.00018445,2]
[370081021,1751875856719,-460.0,0.00018445,2]
[370081022,1751875856728,-460.0,0.00018445,2]
[370081023,1751875856738,-702.9,0.00018445,2]
[370081024,1751875856748,-695.53,0.00018445,2]
[370081025,1751875856758,-460.0,0.00018445,2]
[370081026,1751875856768,-521.92431419,0.00018445,2]
[370081027,1751875856776,-460.0,0.00018445,2]
[370081028,1751875856786,-460.0,0.00018445,2]
[370081029,1751875856796,-460.0,0.00018445,2]
[370081030,1751875856808,-575.15,0.00018445,2]
[370081031,1751875856817,-519.27,0.00018445,2]
[370081032,1751875856827,-5529.72,0.00018445,2]
[370081033,1751875856837,-460.0,0.00018445,2]
[370081034,1751875856847,-881.0,0.00018445,2]
[370081035,1751875856856,-5448.38,0.00018445,2]
[370081036,1751875856866,-485.41,0.00018445,2]
[370081037,1751875856877,-2556.61,0.00018445,2]
[370081038,1751875856887,-460.0,0.00018445,2]
[370081039,1751875856899,-460.0,0.00018445,2]
[370081040,1751875856909,-460.0,0.00018445,2]
[370081041,1751875856919,-745.69,0.00018445,2]
[370081042,1751875856929,-594.9101586,0.00018445,2]
[370081043,1751875856939,-465.13,0.00018445,2]
[370081044,1751875856949,-460.0,0.00018445,2]
[370081045,1751875856959,-460.0,0.00018445,2]
[370081046,1751875856968,-460.0,0.00018445,2]
[370081047,1751875856978,-460.0,0.00018445,2]
[370081048,1751875856988,-460.0,0.00018445,2]
[370081049,1751875856998,-790.9,0.00018445,2]
[370081050,1751875857008,-1470.19,0.00018445,2]
[370081051,1751875857018,-4620.02,0.00018445,2]
[370081052,1751875857028,-1314.65,0.00018445,2]
[370081053,1751875857037,-460.0,0.00018445,2]
[370081054,1751875857047,-460.0,0.00018445,2]
[370081055,1751875857056,-765.6,0.00018445,2]
[370081056,1751875857066,-460.0,0.00018445,2]
[370081057,1751875857076,-460.0,0.00018445,2]
[370081058,1751875857086,-460.0,0.00018445,2]
[370081059,1751875857096,-460.0,0.00018445,2]
[370081060,1751875857106,-460.0,0.00018445,2]
[370081061,1751875857115,-504.96,0.00018445,2]
[370081062,1751875857125,-460.0,0.00018445,2]
[370081063,1751875857134,-598.4,0.00018445,2]
[370081064,1751875857144,-570.3,0.00018445,2]
[370081065,1751875857153,-493.52,0.00018445,2]
[370081066,1751875857163,-2399.93,0.00018445,2]
[370081067,1751875857173,-460.0,0.00018445,2]
[370081068,1751875857183,-460.0,0.00018445,2]
[370081069,1751875857193,-898.57,0.00018445,2]
[370081070,1751875857203,-460.0,0.00018446,2]
[370081071,1751875857213,-460.0,0.00018446,2]
[370081072,1751875857223,-439.47507918,0.00018446,2]
[370081073,1751875857233,-3434.47,0.00018446,2]
[370081074,1751875857243,-1077.95,0.00018446,2]
[370081075,1751875857253,-2897.85,0.00018446,2]
[370081076,1751875857265,-460.0,0.00018446,2]
[370081077,1751875857275,-1795.54,0.00018446,2]
[370081078,1751875857285,-460.0,0.00018447,2]
[370081079,1751875857296,-460.0,0.00018447,2]
[370081080,1751875857307,-460.0,0.00018447,2]
[370081081,1751875857318,-460.0,0.00018447,2]
[370081082,1751875857330,-460.0,0.00018447,2]
[370081083,1751875857341,-168.39369937,0.00018447,2]
[370081084,1751875857350,-460.0,0.00018447,2]
[370081085,1751875857361,-474.18,0.00018447,2]
[370081086,1751875857373,-460.0,0.00018447,2]
[370081087,1751875857383,-460.0,0.00018447,2]
[370081088,1751875857393,-460.0,0.00018447,2]
[370081089,1751875857404,-460.0,0.00018447,2]
[370081090,1751875857414,-460.0,0.00018447,2]
[370081091,1751875857424,-460.0,0.00018447,2]
[370081092,1751875857434,-1143.42,0.00018447,2]
[370081093,1751875857445,-460.0,0.00018447,2]
[370081094,1751875857457,-460.0,0.00018447,2]
[370081095,1751875857469,-460.0,0.00018447,2]
[370081096,1751875857479,-460.0,0.00018447,2]
[370081097,1751875857491,-460.0,0.00018447,2]
[370081098,1751875857501,-460.0,0.00018447,2]
[370081099,1751875857511,-460.0,0.00018447,2]
[370081100,1751875857523,-460.0,0.00018447,2]
[370081101,1751875857533,-490.67,0.00018447,2]
[370081102,1751875857543,-460.0,0.00018447,2]
[370081103,1751875857555,-1004.65,0.00018447,2]
[370081104,1751875857566,-496.7,0.00018447,2]
[370081105,1751875857577,-460.0,0.00018447,2]
[370081106,1751875857586,-180.74169843,0.00018447,2]
[370081107,1751875857596,-1150.83,0.00018447,2]
[370081108,1751875857606,-460.0,0.00018447,2]
[370081109,1751875857615,-990.79,0.00018447,2]
[370081110,1751875857624,-460.0,0.00018447,2]
[370081111,1751875857634,-7607.76,0.00018447,2]
[370081112,1751875857643,-460.0,0.00018447,2]
[370081113,1751875857653,-460.0,0.00018447,2]
[370081114,1751875857664,-732.73,0.00018447,2]
[370081115,1751875857673,-460.0,0.00018447,2]
[370081116,1751875857683,-460.0,0.00018447,2]
[370081117,1751875857693,-460.0,0.00018447,2]
[370081118,1751875857703,-460.0,0.00018447,2]
[370081119,1751875857712,-2001.72,0.00018447,2]
[370081120,1751875857722,-636.96,0.00018447,2]
[370081121,1751875857731,-460.0,0.00018447,2]
[370081122,1751875857741,-460.0,0.00018447,2]
[370081123,1751875857751,-535.96,0.00018447,2]
[370081124,1751875857760,-284.66410312,0.00018447,2]
[370081125,1751875857771,-460.0,0.00018448,2]
[370081126,1751875857781,-553.2,0.00018448,2]
[370081127,1751875857791,-460.0,0.00018448,2]
[370081128,1751875857800,-460.0,0.00018448,2]
[370081129,1751875857810,-460.0,0.00018448,2]
[370081130,1751875857820,-460.0,0.00018448,2]
[370081131,1751875857829,-328.56,0.00018448,2]
[370081132,1751875857840,-390.76,0.00018448,2]
[370081133,1751875857850,-395.95581795,0.00018448,2]
[370081134,1751875857859,-460.0,0.00018448,2]
[370081135,1751875857869,-460.0,0.00018448,2]
[370081136,1751875857879,-460.0,0.00018448,2]
[370081137,1751875857892,-460.0,0.00018448,2]
[370081138,1751875857901,-460.0,0.00018448,2]
[370081139,1751875857911,-1500.0,0.00018468,2]
[370081140,1751875857921,-1504.94424202,0.00018468,2]
[370081141,1751875857931,-1500.0,0.00018468,2]
[370081142,1751875857943,-509.02355026,0.00018468,2]
[370081143,1751875857953,-1500.0,0.00018468,2]
[370081144,1751875857965,-977.08340418,0.00018468,2]
[370081145,1751875857974,-500.0,0.00018468,2]
[370081146,1751875857984,-337.67944473,0.00018468,2]
[370081147,1751875857994,-1500.0,0.00018468,2]
[370081148,1751875858004,-1500.0,0.00018468,2]
[370081149,1751875858013,-500.0,0.00018508,2]
[370081150,1751875858023,-500.0,0.00018591,2]
[370081151,1751875858032,-169.4987685,0.00018621,2]
[370081152,1751875858042,-500.0,0.00018674,2]
[370081153,1751875858052,-2000.0,0.00018716,2]
[370081154,1751875858062,-172.10290035,0.00018719,2]
[370081155,1751875858071,-460.0,0.00018719,2]
[370081156,1751875858081,-460.0,0.00018719,2]
[370081157,1751875858091,-460.0,0.00018719,2]
[370081158,1751875858101,-460.0,0.00018719,2]
[370081159,1751875858111,-460.0,0.00018719,2]
[370081160,1751875858121,-460.0,0.00018719,2]
[370081161,1751875858131,-460.0,0.00018719,2]
[370081162,1751875858141,-337.17494603,0.00018719,2]
[370081163,1751875858152,-307.93,0.00018719,2]
[370081164,1751875858164,-152.37,0.00018719,2]
[370081165,1751875858174,-460.0,0.00018719,2]
[370081166,1751875858185,-559.76,0.00018719,2]
[370081167,1751875858197,-460.0,0.00018719,2]
[370081168,1751875858207,-460.0,0.00018719,2]
[370081169,1751875858217,-460.0,0.00018719,2]
[370081170,1751875858226,-460.0,0.00018719,2]
[370081171,1751875858237,-460.0,0.00018719,2]
[370081172,1751875858247,-557.83071603,0.00018719,2]
[370081173,1751875858258,-460.0,0.00018719,2]
[370081174,1751875858268,-460.0,0.00018719,2]
[370081175,1751875858277,-460.0,0.00018719,2]
[370081176,1751875858287,-460.0,0.00018719,2]
[370081177,1751875858296,-442.21543935,0.00018719,2]
[370081178,1751875858306,-530.16,0.00018719,2]
[370081179,1751875858315,-460.0,0.00018719,2]
[370081180,1751875858324,-460.0,0.00018719,2]
[370081181,1751875858334,-460.0,0.00018719,2]
[370081182,1751875858344,-466.6,0.00018719,2]
[370081183,1751875858353,-460.0,0.00018719,2]
[370081184,1751875858363,-460.0,0.00018719,2]
[370081185,1751875858372,-460.0,0.00018719,2]
[370081186,1751875858383,-362.88166495,0.00018719,2]
[370081187,1751875858392,-460.0,0.00018719,2]
[370081188,1751875858402,-460.0,0.00018719,2]
[370081189,1751875858412,-480.21,0.00018719,2]
[370081190,1751875858421,-500.0,0.00018719,2]
[370081191,1751875858432,-460.0,0.00018719,2]
[370081192,1751875858442,-3508.38,0.00018719,2]
[370081193,1751875858453,-460.0,0.00018719,2]
[370081194,1751875858464,-470.48,0.00018719,2]
[370081195,1751875858475,-1141.42,0.00018719,2]
[370081196,1751875858487,-517.7,0.00018719,2]
[370081197,1751875858496,-474.7,0.00018719,2]
[370081198,1751875858517,-466.4,0.00018719,2]
[370081199,1751875858530,-460.0,0.00018719,2]
[370081200,1751875858820,-233.02915264,0.00018719,2]
[370081201,1751875858837,-460.0,0.00018719,2]
[370081202,1751875858847,-1282.13,0.00018719,2]
[370081203,1751875858857,-460.0,0.00018719,2]
[370081204,1751875858868,-460.0,0.00018719,2]
[370081205,1751875858878,-702.9,0.00018719,2]
[370081206,1751875858893,-695.53,0.00018719,2]
[370081207,1751875858902,-368.84293636,0.00018719,2]
[370081208,1751875858912,-460.0,0.00018719,2]
[370081209,1751875858921,-460.0,0.00018719,2]
[370081210,1751875858931,-575.15,0.00018719,2]
[370081211,1751875858941,-519.27,0.00018719,2]
[370081212,1751875858951,-460.0,0.00018719,2]
[370081213,1751875858961,-5529.72,0.00018719,2]
[370081214,1751875858971,-460.0,0.00018719,2]
[370081215,1751875858980,-881.0,0.00018719,2]
[370081216,1751875858990,-5448.38,0.00018719,2]
[370081217,1751875859000,-485.41,0.00018719,2]
[370081218,1751875859009,-2556.61,0.00018719,2]
[370081219,1751875859019,-460.0,0.00018719,2]
[370081220,1751875859028,-460.0,0.00018719,2]
[370081221,1751875859043,-460.0,0.00018719,2]
[370081222,1751875859053,-745.69,0.00018719,2]
[370081223,1751875859062,-465.13,0.00018719,2]
[370081224,1751875859072,-460.0,0.00018719,2]
[370081225,1751875859082,-460.0,0.00018719,2]
[370081226,1751875859092,-460.0,0.00018719,2]
[370081227,1751875859102,-460.0,0.00018719,2]
[370081228,1751875859111,-460.0,0.00018719,2]
[370081229,1751875859121,-790.9,0.00018719,2]
[370081230,1751875859132,-1470.19,0.00018719,2]
[370081231,1751875859143,-4620.02,0.00018719,2]
[370081232,1751875859153,-1314.65,0.00018719,2]
[370081233,1751875859164,-460.0,0.00018719,2]
[370081234,1751875859176,-460.0,0.00018719,2]
[370081235,1751875859186,-765.6,0.00018719,2]
[370081236,1751875859196,-460.0,0.00018719,2]
[370081237,1751875859207,-460.0,0.00018719,2]
[370081238,1751875859217,-460.0,0.00018719,2]
[370081239,1751875859227,-460.0,0.00018719,2]
[370081240,1751875859238,-504.96,0.00018719,2]
[370081241,1751875859249,-460.0,0.00018719,2]
[370081242,1751875859259,-598.4,0.00018719,2]
[370081243,1751875859270,-570.3,0.00018719,2]
[370081244,1751875859281,-493.52,0.00018719,2]
[370081245,1751875859293,-2399.93,0.00018719,2]
[370081246,1751875859303,-460.0,0.00018719,2]
[370081247,1751875859313,-460.0,0.00018719,2]
[370081248,1751875859322,-898.57,0.00018719,2]
[370081249,1751875859332,-197.71931182,0.0001872,2]
[370081250,1751875859342,-3434.47,0.0001872,2]
[370081251,1751875859351,-1077.95,0.0001872,2]
[370081252,1751875859360,-2897.85,0.0001872,2]
[370081253,1751875859370,-460.0,0.0001872,2]
[370081254,1751875859380,-1795.54,0.0001872,2]
[370081255,1751875859390,-460.0,0.00018721,2]
[370081256,1751875859400,-460.0,0.00018721,2]
[370081257,1751875859410,-460.0,0.00018721,2]
[370081258,1751875859421,-460.0,0.00018721,2]
[370081259,1751875859431,-460.0,0.00018721,2]
[370081260,1751875859441,-165.15837773,0.00018721,2]
[370081261,1751875859451,-474.18,0.00018721,2]
[370081262,1751875859461,-460.0,0.00018721,2]
[370081263,1751875859471,-460.0,0.00018721,2]
[370081264,1751875859481,-460.0,0.00018721,2]
[370081265,1751875859490,-460.0,0.00018721,2]
[370081266,1751875859500,-484.64,0.00018721,2]
[370081267,1751875859510,-316.3138839,0.00018721,2]
[370081268,1751875859520,-1143.42,0.00018721,2]
[370081269,1751875859530,-460.0,0.00018721,2]
[370081270,1751875859539,-460.0,0.00018721,2]
[370081271,1751875859549,-460.0,0.00018721,2]
[370081272,1751875859558,-460.0,0.00018721,2]
[370081273,1751875859568,-460.0,0.00018721,2]
[370081274,1751875859578,-460.0,0.00018721,2]
[370081275,1751875859588,-460.0,0.00018721,2]
[370081276,1751875859598,-460.0,0.00018721,2]
[370081277,1751875859609,-490.67,0.00018721,2]
[370081278,1751875859618,-460.0,0.00018721,2]
[370081279,1751875859628,-1004.65,0.00018721,2]
[370081280,1751875859638,-496.7,0.00018721,2]
[370081281,1751875859648,-460.0,0.00018721,2]
[370081282,1751875859660,-1150.83,0.00018721,2]
[370081283,1751875859672,-460.0,0.00018721,2]
[370081284,1751875859682,-990.79,0.00018721,2]
[370081285,1751875859696,-203.95,0.00018721,2]
[370081286,1751875859709,-7607.76,0.00018721,2]
[370081287,1751875859719,-460.0,0.00018721,2]
[370081288,1751875859731,-460.0,0.00018721,2]
[370081289,1751875859746,-732.73,0.00018721,2]
[370081290,1751875859756,-460.0,0.00018721,2]
[370081291,1751875859765,-460.0,0.00018721,2]
[370081292,1751875859775,-460.0,0.00018721,2]
[370081293,1751875859786,-460.0,0.00018721,2]
[370081294,1751875859795,-2001.72,0.00018721,2]
[370081295,1751875859805,-636.96,0.00018721,2]
[370081296,1751875859815,-460.0,0.00018721,2]
[370081297,1751875859825,-460.0,0.00018721,2]
[370081298,1751875859834,-535.96,0.00018721,2]
[370081299,1751875859844,-460.0,0.00018722,2]
[370081300,1751875859854,-460.0,0.00018722,2]
[370081301,1751875859863,-460.0,0.00018722,2]
[370081302,1751875859873,-546.14,0.00018722,2]
[370081303,1751875859883,-460.0,0.00018722,2]
[370081304,1751875859896,-285.27,0.00018722,2]
[370081305,1751875859907,-460.0,0.00018722,2]
[370081306,1751875859920,-460.0,0.00018722,2]
[370081307,1751875859930,-460.0,0.00018722,2]
[370081308,1751875859940,-438.29,0.00018722,2]
[370081309,1751875859951,-151.0,0.00018729,2]
[370081310,1751875859960,-267.27460468,0.00018742,2]
[370081311,1751875859972,-500.0,0.00018757,2]
[370081312,1751875859982,-318.01874892,0.00018768,2]
[370081313,1751875859992,-1000.0,0.00018768,2]
[370081314,1751875860002,-1500.0,0.00018768,2]
[370081315,1751875860012,-1500.0,0.00018768,2]
[370081316,1751875860022,-1800.0,0.00018768,2]
[370081317,1751875860031,-663.66441079,0.00018768,2]
[370081318,1751875860042,-1500.0,0.00018768,2]
[370081319,1751875860053,-1596.20139154,0.00018768,2]
[370081320,1751875860063,-1081.53029727,0.00018768,2]
[370081321,1751875860072,-500.0,0.00018841,2]
[370081322,1751875860082,-160.0,0.00018843,2]
[370081323,1751875860093,-160.0,0.00018843,2]
[370081324,1751875860105,-160.0,0.00018843,2]
[370081325,1751875860116,-160.0,0.00018843,2]
[370081326,1751875860127,-848.27993403,0.00018843,2]
[370081327,1751875860138,-837.79946008,0.00018843,2]
[370081328,1751875860150,-160.0,0.00018843,2]
[370081329,1751875860159,-230.48668418,0.00018843,2]
[370081330,1751875860170,-160.0,0.00018843,2]
[370081331,1751875860179,-214.06929976,0.00018843,2]
[370081332,1751875860189,-160.0,0.00018843,2]
[370081333,1751875860199,-12584.46609586,0.00018843,2]
[370081334,1751875860209,-215.21338352,0.00018843,2]
[370081335,1751875860218,-4887.34641487,0.000189,2]
[370081336,1751875860228,-500.0,0.00018924,2]
[370081337,1751875860238,-460.0,0.00018993,2]
[370081338,1751875860247,-460.0,0.00018993,2]
[370081339,1751875860257,-460.0,0.00018993,2]
[370081340,1751875860267,-460.0,0.00018993,2]
[370081341,1751875860276,-460.0,0.00018993,2]
[370081342,1751875860286,-318.3,0.00018993,2]
[370081343,1751875860295,-460.0,0.00018993,2]
[370081344,1751875860305,-460.0,0.00018993,2]
[370081345,1751875860315,-434.07005345,0.00018993,2]
[370081346,1751875860324,-460.0,0.00018993,2]
[370081347,1751875860334,-460.0,0.00018993,2]
[370081348,1751875860343,-460.0,0.00018993,2]
[370081349,1751875860352,-460.0,0.00018993,2]
[370081350,1751875860362,-460.0,0.00018993,2]
[370081351,1751875860372,-176.46804853,0.00018993,2]
[370081352,1751875860381,-150.69300627,0.00018993,2]
[370081353,1751875860391,-460.0,0.00018993,2]
[370081354,1751875860401,-530.16,0.00018993,2]
[370081355,1751875860411,-568.89965697,0.00018993,2]
[370081356,1751875860421,-460.0,0.00018993,2]
[370081357,1751875860431,-460.0,0.00018993,2]
[370081358,1751875860440,-466.6,0.00018993,2]
[370081359,1751875860450,-460.0,0.00018993,2]
[370081360,1751875860461,-460.0,0.00018993,2]
[370081361,1751875860472,-460.0,0.00018993,2]
[370081362,1751875860482,-460.0,0.00018993,2]
[370081363,1751875860492,-460.0,0.00018993,2]
[370081364,1751875860502,-480.21,0.00018993,2]
[370081365,1751875860512,-285.96749015,0.00018993,2]
[370081366,1751875860521,-460.0,0.00018993,2]
[370081367,1751875860531,-3508.38,0.00018993,2]
[370081368,1751875860541,-460.0,0.00018993,2]
[370081369,1751875860550,-470.48,0.00018993,2]
[370081370,1751875860560,-1141.42,0.00018993,2]
[370081371,1751875860570,-517.7,0.00018993,2]
[370081372,1751875860591,-474.7,0.00018993,2]
[370081373,1751875860601,-466.4,0.00018993,2]
[370081374,1751875860610,-460.0,0.00018993,2]
[370081375,1751875860620,-460.0,0.00018993,2]
[370081376,1751875860630,-1282.13,0.00018993,2]
[370081377,1751875860640,-460.0,0.00018993,2]
[370081378,1751875860650,-460.0,0.00018993,2]
[370081379,1751875860659,-702.9,0.00018993,2]
[370081380,1751875860670,-695.53,0.00018993,2]
[370081381,1751875860679,-460.0,0.00018993,2]
[370081382,1751875860689,-460.0,0.00018993,2]
[370081383,1751875860699,-575.15,0.00018993,2]
[370081384,1751875860708,-460.0,0.00018993,2]
[370081385,1751875860719,-5529.72,0.00018993,2]
[370081386,1751875860728,-519.27,0.00018993,2]
[370081387,1751875860738,-460.0,0.00018993,2]
[370081388,1751875860749,-881.0,0.00018993,2]
[370081389,1751875860759,-5448.38,0.00018993,2]
[370081390,1751875860769,-485.41,0.00018993,2]
[370081391,1751875860780,-2556.61,0.00018993,2]
[370081392,1751875860790,-460.0,0.00018993,2]
[370081393,1751875860800,-460.0,0.00018993,2]
[370081394,1751875860810,-460.0,0.00018993,2]
[370081395,1751875860820,-745.69,0.00018993,2]
[370081396,1751875860830,-465.13,0.00018993,2]
[370081397,1751875860839,-460.0,0.00018993,2]
[370081398,1751875860849,-460.0,0.00018993,2]
[370081399,1751875860859,-460.0,0.00018993,2]
[370081400,1751875860870,-460.0,0.00018993,2]
[370081401,1751875860880,-460.0,0.00018993,2]
[370081402,1751875860894,-790.9,0.00018993,2]
[370081403,1751875860903,-1470.19,0.00018993,2]
[370081404,1751875860910,-1314.65,0.00018993,2]
[370081405,1751875860918,-460.0,0.00018993,2]
[370081406,1751875860926,-460.0,0.00018993,2]
[370081407,1751875860934,-765.6,0.00018993,2]
[370081408,1751875860941,-460.0,0.00018993,2]
[370081409,1751875860949,-460.0,0.00018993,2]
[370081410,1751875860957,-460.0,0.00018993,2]
[370081411,1751875860966,-460.0,0.00018993,2]
[370081412,1751875860974,-504.96,0.00018993,2]
[370081413,1751875860981,-460.0,0.00018993,2]
[370081414,1751875860990,-598.4,0.00018993,2]
[370081415,1751875860999,-570.3,0.00018993,2]
[370081416,1751875861008,-493.52,0.00018993,2]
[370081417,1751875861018,-2399.93,0.00018993,2]
[370081418,1751875861028,-460.0,0.00018993,2]
[370081419,1751875861038,-460.0,0.00018993,2]
[370081420,1751875861047,-898.57,0.00018993,2]
[370081421,1751875861057,-3434.47,0.00018994,2]
[370081422,1751875861067,-1077.95,0.00018994,2]
[370081423,1751875861076,-2897.85,0.00018994,2]
[370081424,1751875861087,-460.0,0.00018994,2]
[370081425,1751875861096,-1795.54,0.00018994,2]
[370081426,1751875861106,-460.0,0.00018995,2]
[370081427,1751875861116,-460.0,0.00018995,2]
[370081428,1751875861125,-460.0,0.00018995,2]
[370081429,1751875861136,-460.0,0.00018995,2]
[370081430,1751875861146,-460.0,0.00018995,2]
[370081431,1751875861156,-474.18,0.00018995,2]
[370081432,1751875861166,-460.0,0.00018995,2]
[370081433,1751875861175,-460.0,0.00018995,2]
[370081434,1751875861185,-460.0,0.00018995,2]
[370081435,1751875861195,-460.0,0.00018995,2]
[370081436,1751875861205,-1143.42,0.00018995,2]
[370081437,1751875861215,-460.0,0.00018995,2]
[370081438,1751875861322,-460.0,0.00018995,2]
[370081439,1751875861331,-460.0,0.00018995,2]
[370081440,1751875861340,-460.0,0.00018995,2]
[370081441,1751875861350,-460.0,0.00018995,2]
[370081442,1751875861359,-460.0,0.00018995,2]
[370081443,1751875861369,-460.0,0.00018995,2]
[370081444,1751875861378,-460.0,0.00018995,2]
[370081445,1751875861387,-490.67,0.00018995,2]
[370081446,1751875861397,-460.0,0.00018995,2]
[370081447,1751875861407,-1004.65,0.00018995,2]
[370081448,1751875861416,-496.7,0.00018995,2]
[370081449,1751875861425,-460.0,0.00018995,2]
[370081450,1751875861435,-1150.83,0.00018995,2]
[370081451,1751875861444,-460.0,0.00018995,2]
[370081452,1751875861453,-990.79,0.00018995,2]
[370081453,1751875861462,-7607.76,0.00018995,2]
[370081454,1751875861471,-460.0,0.00018995,2]
[370081455,1751875861481,-219.73732468,0.00018995,2]
[370081456,1751875861491,-732.73,0.00018995,2]
[370081457,1751875861500,-460.0,0.00018995,2]
[370081458,1751875861509,-460.0,0.00018995,2]
[370081459,1751875861518,-460.0,0.00018995,2]
[370081460,1751875861527,-460.0,0.00018995,2]
[370081461,1751875861537,-2001.72,0.00018995,2]
[370081462,1751875861546,-636.96,0.00018995,2]
[370081463,1751875861555,-460.0,0.00018995,2]
[370081464,1751875861565,-460.0,0.00018995,2]
[370081465,1751875861575,-535.96,0.00018995,2]
[370081466,1751875861584,-460.0,0.00018996,2]
[370081467,1751875861594,-415.68095347,0.00018996,2]
[370081468,1751875861603,-556.72656212,0.00018996,2]
[370081469,1751875861612,-460.0,0.00018996,2]
[370081470,1751875861622,-460.0,0.00018996,2]
[370081471,1751875861637,-460.0,0.00018996,2]
[370081472,1751875861647,-500.0,0.00019007,2]
[370081473,1751875861656,-397.95170197,0.00019016,2]
[370081474,1751875861665,-1522.75019543,0.00019016,2]
[370081475,1751875861676,-1505.94513548,0.00019016,2]
[370081476,1751875861686,-1503.55238923,0.00019016,2]
[370081477,1751875861695,-2000.0,0.00019016,2]
[370081478,1751875861704,-500.0,0.0001909,2]
[370081479,1751875861714,-1266.05468493,0.00019168,2]
[370081480,1751875861723,-500.0,0.00019173,2]
[370081481,1751875861733,-177.80517233,0.00019178,2]
[370081482,1751875861742,-5000.0,0.00019178,2]
[370081483,1751875861751,-4852.74565,0.00019178,2]
[370081484,1751875861761,-666.0,0.00019178,2]
[370081485,1751875861771,-554.178161,0.00019178,2]
[370081486,1751875861780,-2772.3148592,0.00019178,2]
[370081487,1751875861790,-151.0,0.00019191,2]
[370081488,1751875861799,-151.0,0.00019191,2]
[370081489,1751875861808,-690.642,0.00019191,2]
[370081490,1751875861818,-151.0,0.00019191,2]
[370081491,1751875861827,-500.0,0.00019191,2]
[370081492,1751875861837,-151.0,0.00019191,2]
[370081493,1751875861847,-154.73315175,0.00019191,2]
[370081494,1751875861856,-151.0,0.00019191,2]
[370081495,1751875861866,-151.0,0.00019191,2]
[370081496,1751875861877,-151.0,0.00019191,2]
[370081497,1751875861888,-151.0,0.00019191,2]
[370081498,1751875861902,-151.0,0.00019191,2]
[370081499,1751875861912,-151.0,0.00019191,2]
[370081500,1751875861922,-151.0,0.00019191,2]
[370081501,1751875861931,-5000.0,0.00019191,2]
[370081502,1751875861942,-151.0,0.00019191,2]
[370081503,1751875861952,-151.0,0.00019191,2]
[370081504,1751875861962,-151.0,0.00019191,2]
[370081505,1751875861973,-151.0,0.00019191,2]
[370081506,1751875861983,-151.0,0.00019191,2]
[370081507,1751875861993,-151.0,0.00019191,2]